bitfinex/quotes_BTCUSD_20250316
["timestamp","ask_amount","ask_price","bid_price","bid_amount"]
[1742116930459,0.59794518,84267.0,84266.0,4e-07]
[1742116931998,0.57934162,84267.0,84266.0,4e-07]
[1742116935421,0.59794513,84267.0,84266.0,4e-07]
[1742116936301,0.57934162,84267.0,84266.0,4e-07]
[1742116939410,0.5884185,84267.0,84266.0,4e-07]
[1742116939704,0.60702174,84267.0,84266.0,4e-07]
[1742116940934,0.5884185,84267.0,84266.0,4e-07]
[1742116943836,0.60702175,84267.0,84266.0,4e-07]
[1742116948320,0.5884185,84267.0,84266.0,4e-07]
[1742116951826,0.60702146,84267.0,84266.0,4e-07]
[1742116952710,0.5884185,84267.0,84266.0,4e-07]
[1742116956122,0.60702142,84267.0,84266.0,4e-07]
[1742116957131,0.5884185,84267.0,84266.0,4e-07]
[1742116960447,0.60702121,84267.0,84266.0,4e-07]
[1742116961536,0.5884185,84267.0,84266.0,4e-07]
[1742116964955,0.60702139,84267.0,84266.0,4e-07]
[1742116968465,0.60702139,84267.0,84266.0,0.0824004]
[1742116968466,0.03013462,84267.0,84266.0,0.0824004]
[1742116968819,0.56747462,84267.0,84266.0,0.0824004]
[1742116969360,0.56247462,84267.0,84266.0,0.0824004]
[1742116969824,0.56647462,84267.0,84266.0,0.0824004]
[1742116970028,0.56147462,84267.0,84266.0,0.0824004]
[1742116970437,0.56447462,84267.0,84266.0,0.0824004]
[1742116970841,0.57634162,84267.0,84266.0,0.0824004]
[1742116971068,0.57634162,84267.0,84266.0,4e-07]
[1742116971873,0.59494445,84267.0,84266.0,4e-07]
[1742116973065,0.57634162,84267.0,84266.0,4e-07]
[1742116977538,0.59494419,84267.0,84266.0,4e-07]
[1742116982088,0.6036576,84267.0,84266.0,4e-07]
[1742116983046,0.6798576,84267.0,84266.0,4e-07]
[1742116983267,0.66125503,84267.0,84266.0,4e-07]
[1742116986543,0.67985938,84267.0,84266.0,4e-07]
[1742116987467,0.66125503,84267.0,84266.0,4e-07]
[1742116990172,1.12895503,84267.0,84266.0,4e-07]
[1742116990339,1.24853006,84267.0,84266.0,4e-07]
[1742116990932,1.1475606,84267.0,84266.0,4e-07]
[1742116991139,1.1405606,84267.0,84266.0,4e-07]
[1742116991565,1.1505606,84267.0,84266.0,4e-07]
[1742116991762,1.1455606,84267.0,84266.0,4e-07]
[1742116991983,1.1455606,84267.0,84252.0,0.0001694]
[1742116991984,0.676349,84253.0,84252.0,0.0001694]
[1742116992216,0.967149,84253.0,84252.0,0.0001694]
[1742116992417,0.98688871,84253.0,84252.0,0.0001694]
[1742116993308,0.98701244,84253.0,84252.0,0.0001694]
[1742116994511,0.99001244,84253.0,84252.0,0.0001694]
[1742116994772,0.99401244,84253.0,84252.0,0.0001694]
[1742116996579,1.0126183,84253.0,84252.0,0.0001694]
[1742116999051,0.99401244,84253.0,84252.0,0.0001694]
[1742117003580,1.01261834,84253.0,84252.0,0.0001694]
[1742117007975,1.09481834,84253.0,84252.0,0.0001694]
[1742117012388,0.84556934,84253.0,84233.0,0.12967226]
[1742117012600,0.549304,84234.0,84233.0,0.12967226]
[1742117013125,0.56698996,84234.0,84233.0,0.12967226]
[1742117013397,0.59725049,84234.0,84233.0,0.12967226]
[1742117018322,0.33629311,84234.0,84233.0,0.12967226]
[1742117018586,0.33629311,84234.0,84233.0,0.50497926]
[1742117019702,0.33629311,84234.0,84233.0,0.50514876]
[1742117023061,0.33629311,84234.0,84233.0,0.2085495]
[1742117023268,0.58559711,84234.0,84233.0,0.0001695]
[1742117023463,0.58559711,84234.0,84233.0,0.1312495]
[1742117024876,0.58559711,84234.0,84233.0,0.0001695]
[1742117025991,0.59739432,84234.0,84233.0,0.0001695]
[1742117030449,0.57878717,84234.0,84233.0,0.0001695]
[1742117032390,0.57912617,84234.0,84233.0,0.0001695]
[1742117033749,0.59773421,84234.0,84233.0,0.0001695]
[1742117034749,0.57912617,84234.0,84233.0,0.0001695]
[1742117038134,0.59773413,84234.0,84233.0,0.0001695]
[1742117039205,0.57912617,84234.0,84233.0,0.0001695]
[1742117044949,0.66122617,84234.0,84233.0,0.0001695]
[1742117045757,0.66222617,84234.0,84233.0,0.0001695]
[1742117046140,0.58012617,84234.0,84233.0,0.0001695]
[1742117046488,0.62772617,84234.0,84233.0,0.0001695]
[1742117046846,0.62972617,84234.0,84233.0,0.0001695]
[1742117047051,0.64833513,84234.0,84233.0,0.0001695]
[1742117048061,0.62972617,84234.0,84233.0,0.0001695]
[1742117052310,0.58212617,84234.0,84233.0,0.0001695]
[1742117054236,0.33282217,84234.0,84233.0,0.2494765]
[1742117054574,0.33282217,84234.0,84233.0,0.0001695]
[1742117054757,0.33282217,84234.0,84233.0,0.1311695]
[1742117055377,0.57025517,84234.0,84233.0,0.1311695]
[1742117055584,0.58112617,84234.0,84233.0,0.1311695]
[1742117056261,0.57912617,84234.0,84233.0,0.1311695]
[1742117057939,0.32982217,84234.0,84233.0,0.1311695]
[1742117058182,0.32982217,84234.0,84233.0,0.3804765]
[1742117058363,0.32982217,84234.0,84233.0,0.1311695]
[1742117058541,0.300339,84234.0,84233.0,0.1311695]
[1742117058739,0.549643,84234.0,84233.0,0.1311695]
[1742117059098,0.57906841,84234.0,84233.0,0.1311695]
[1742117060377,0.57906841,84234.0,84233.0,0.0001695]
[1742117064197,0.58156841,84234.0,84233.0,0.0001695]
[1742117066944,0.33226441,84234.0,84233.0,0.2494765]
[1742117067163,0.33226441,84234.0,84233.0,0.0001695]
[1742117068483,0.33226441,84234.0,84233.0,0.2376055]
[1742117069393,0.03226441,84234.0,84233.0,0.3797765]
[1742117069779,0.002839,84234.0,84233.0,0.3797765]
[1742117070788,0.002839,84234.0,84233.0,0.40314609]
[1742117072904,0.002839,84234.0,84233.0,0.40514609]
[1742117073435,0.002839,84234.0,84233.0,0.40914609]
[1742117080502,0.002839,84234.0,84233.0,0.54326197]
[1742117081214,0.002839,84234.0,84233.0,0.54126197]
[1742117081564,0.003839,84234.0,84233.0,0.54526197]
[1742117082190,0.002839,84234.0,84233.0,0.54126197]
[1742117082368,0.003839,84234.0,84233.0,0.54526197]
[1742117082571,0.003839,84234.0,84233.0,0.54126197]
[1742117083067,0.003839,84234.0,84233.0,0.54626197]
[1742117083467,0.003839,84234.0,84233.0,1.30002197]
[1742117083796,0.003839,84234.0,84233.0,1.29502197]
[1742117084188,0.003839,84234.0,84233.0,1.30102197]
[1742117084399,1e-06,84234.0,84233.0,1.42722197]
[1742117084597,1e-06,84234.0,84233.0,1.47722197]
[1742117084823,1e-06,84234.0,84233.0,1.48322197]
[1742117084962,1e-06,84234.0,84233.0,1.520254]
[1742117085478,1e-06,84234.0,84233.0,1.514254]
[1742117085661,1e-06,84234.0,84233.0,1.508254]
[1742117085900,1e-06,84234.0,84233.0,1.514254]
[1742117086104,1e-06,84234.0,84233.0,1.520254]
[1742117086465,1e-06,84234.0,84233.0,1.514254]
[1742117086662,1e-06,84234.0,84233.0,1.520254]
[1742117087974,1e-06,84234.0,84233.0,1.514254]
[1742117088552,1e-06,84234.0,84233.0,1.519254]
[1742117088958,1e-06,84234.0,84233.0,1.513254]
[1742117089165,0.00046273,84253.0,84252.0,0.249252]
[1742117089373,0.00046273,84253.0,84252.0,0.51400788]
[1742117090282,0.00046273,84253.0,84252.0,0.59420788]
[1742117090459,0.00046273,84253.0,84252.0,0.59820788]
[1742117091971,0.00046273,84253.0,84252.0,0.60316788]
[1742117095353,0.00046273,84253.0,84252.0,0.62678362]
[1742117098739,0.00046273,84253.0,84252.0,1.38034362]
[1742117103546,0.00046273,84253.0,84252.0,1.24874362]
[1742117103768,0.00046273,84253.0,84252.0,1.38010362]
[1742117104918,0.00046273,84253.0,84252.0,1.38510362]
[1742117105130,7.3e-07,84253.0,84252.0,1.38510362]
[1742117107197,7.3e-07,84253.0,84252.0,1.38010362]
[1742117107619,7.3e-07,84253.0,84252.0,1.15400277]
[1742117107826,0.23738073,84253.0,84252.0,0.14032]
[1742117108160,0.7024101,84253.0,84252.0,0.015]
[1742117109011,0.631372,84245.0,84244.0,0.13136]
[1742117110678,0.631372,84245.0,84244.0,0.13236]
[1742117111253,0.64997715,84245.0,84244.0,0.001]
[1742117111484,0.64997715,84245.0,84244.0,0.13332]
[1742117111878,0.65754562,84245.0,84244.0,0.13332]
[1742117112174,0.63894047,84245.0,84244.0,0.13332]
[1742117113282,0.63894047,84245.0,84244.0,0.1334893]
[1742117115058,0.65082671,84245.0,84244.0,0.1334893]
[1742117115290,0.66943227,84245.0,84244.0,0.1334893]
[1742117115594,0.66943227,84245.0,84244.0,0.0021693]
[1742117115851,0.66943227,84245.0,84244.0,0.1334493]
[1742117116050,0.71633227,84245.0,84244.0,0.1334493]
[1742117116343,0.71633227,84245.0,84244.0,0.0021693]
[1742117116549,0.69772671,84245.0,84244.0,0.0021693]
[1742117116764,0.69772671,84245.0,84244.0,0.0011693]
[1742117116965,0.69772671,84245.0,84244.0,0.0001693]
[1742117118354,0.69972671,84245.0,84244.0,0.0001693]
[1742117120404,0.69772671,84245.0,84244.0,0.0001693]
[1742117120890,0.69972671,84245.0,84244.0,0.0001693]
[1742117121308,0.71833429,84245.0,84244.0,0.0001693]
[1742117122182,0.73510703,84245.0,84244.0,0.0001693]
[1742117127037,0.71649945,84245.0,84244.0,0.0001693]
[1742117131929,0.73510802,84245.0,84244.0,0.0001693]
[1742117132484,0.549364,84214.0,84213.0,0.75384]
[1742117132691,0.5736208,84214.0,84213.0,0.75384]
[1742117132898,0.5617468,84214.0,84213.0,0.88508]
[1742117133094,0.5617468,84214.0,84210.0,0.237499]
[1742117133095,0.3242568,84214.0,84210.0,1.52352555]
[1742117133303,0.3242568,84214.0,84213.0,0.13124]
[1742117133846,0.3242568,84214.0,84213.0,0.13665477]
[1742117134249,0.3242568,84214.0,84213.0,0.14065477]
[1742117134626,0.3242568,84214.0,84213.0,0.00941477]
[1742117134834,0.3242568,84214.0,84213.0,0.14065477]
[1742117135008,0.3242568,84214.0,84213.0,0.00941477]
[1742117135212,0.3242568,84214.0,84213.0,0.14065477]
[1742117135511,0.33623149,84214.0,84213.0,0.14065477]
[1742117137035,0.33623149,84214.0,84213.0,0.39002177]
[1742117137434,0.33623149,84214.0,84213.0,0.14065477]
[1742117138223,0.31197469,84214.0,84213.0,0.37814777]
[1742117138588,0.33622017,84214.0,84213.0,0.37814777]
[1742117138965,0.33622017,84214.0,84213.0,0.39002177]
[1742117140188,0.33622017,84214.0,84213.0,0.14057477]
[1742117141969,0.33622017,84214.0,84213.0,0.37806777]
[1742117142634,0.33622017,84214.0,84213.0,0.38994177]
[1742117143282,0.32872292,84214.0,84213.0,0.38994177]
[1742117143441,0.31947194,84214.0,84213.0,0.38994177]
[1742117143647,0.3362182,84214.0,84213.0,0.38994177]
[1742117144931,0.31197469,84214.0,84213.0,0.38994177]
[1742117145137,0.3362182,84214.0,84213.0,0.38994177]
[1742117145855,0.32424351,84214.0,84213.0,0.38994177]
[1742117146265,0.3,84214.0,84213.0,0.38994177]
[1742117147694,0.32424351,84214.0,84213.0,1.88994177]
[1742117147897,0.3,84214.0,84213.0,1.88994177]
[1742117148640,0.3,84214.0,84213.0,1.8883305]
[1742117149075,0.005,84233.0,84226.0,0.011872]
[1742117149274,0.3,84227.0,84223.0,0.249332]
[1742117149588,0.011872,84226.0,84221.0,0.011873]
[1742117149797,0.249333,84226.0,84221.0,0.249343]
[1742117149999,0.3,84225.0,84221.0,0.249343]
[1742117150383,0.3,84225.0,84222.0,0.237467]
[1742117150505,0.537459,84225.0,84222.0,0.237467]
[1742117151342,0.00750024,84224.0,84222.0,0.237467]
[1742117151744,0.00750024,84224.0,84223.0,0.13108]
[1742117152143,0.02424765,84224.0,84223.0,0.13108]
[1742117152696,0.26170965,84224.0,84223.0,0.13108]
[1742117153083,0.3,84222.0,84221.0,0.002]
[1742117153302,0.55421435,84222.0,84221.0,0.13308]
[1742117153505,0.31674735,84222.0,84221.0,0.37055]
[1742117153687,0.31674735,84222.0,84221.0,0.36855]
[1742117153906,0.31674735,84222.0,84221.0,0.13108]
[1742117154106,0.31674735,84222.0,84221.0,0.36855]
[1742117154303,0.31674735,84222.0,84221.0,0.37055]
[1742117154950,0.32424744,84222.0,84221.0,0.37055]
[1742117155107,0.32424744,84222.0,84221.0,0.37355]
[1742117156161,0.02424744,84222.0,84221.0,0.37355]
[1742117158637,0.02424744,84222.0,84221.0,0.37209985]
[1742117158967,0.02424744,84222.0,84221.0,0.38397285]
[1742117160281,0.39798744,84222.0,84221.0,0.005]
[1742117160486,0.39798744,84222.0,84221.0,0.13604]
[1742117160882,0.39798744,84222.0,84221.0,0.005]
[1742117161223,0.39798744,84222.0,84221.0,0.13604]
[1742117161413,0.39832644,84222.0,84221.0,0.13604]
[1742117162786,0.69832644,84222.0,84221.0,0.13604]
[1742117164483,0.71693682,84222.0,84221.0,0.13604]
[1742117164828,0.72193682,84222.0,84221.0,0.13604]
[1742117165338,0.72193682,84222.0,84221.0,0.005]
[1742117165544,0.70332644,84222.0,84221.0,0.005]
[1742117166535,0.70332644,84222.0,84221.0,0.002]
[1742117166741,0.70332644,84222.0,84221.0,0.001]
[1742117167094,0.70332644,84222.0,84221.0,0.002]
[1742117168562,0.70332644,84222.0,84221.0,0.00069487]
[1742117168763,0.72193733,84222.0,84221.0,0.00069487]
[1742117169896,0.70332644,84222.0,84221.0,0.00069487]
[1742117172616,0.70332644,84222.0,84221.0,0.00086427]
[1742117173048,0.70332644,84222.0,84221.0,0.0001694]
[1742117173258,0.72193759,84222.0,84221.0,0.0021694]
[1742117175900,1.13983759,84222.0,84221.0,0.0011694]
[1742117176106,1.14083759,84222.0,84221.0,0.0011694]
[1742117176468,1.13576729,84222.0,84221.0,0.0011694]
[1742117176676,0.249364,84214.0,84213.0,0.00041477]
[1742117176861,0.70657753,84214.0,84213.0,0.00041477]
[1742117177064,0.72451186,84214.0,84213.0,0.00041477]
[1742117177512,0.72451186,84214.0,84213.0,7.7e-07]
[1742117177513,1.14241186,84214.0,84213.0,7.7e-07]
[1742117179207,1.15143287,84214.0,84213.0,7.7e-07]
[1742117179932,1.17004984,84214.0,84213.0,7.7e-07]
[1742117181573,0.3,84189.0,84186.0,0.22695966]
[1742117181765,0.537566,84187.0,84186.0,0.00012373]
[1742117183203,0.537566,84187.0,84186.0,0.00512373]
[1742117183610,0.537566,84187.0,84186.0,0.01112373]
[1742117183855,0.537566,84187.0,84186.0,0.00612373]
[1742117184078,0.3,84187.0,84186.0,0.00612373]
[1742117184269,0.3,84187.0,84186.0,0.25557073]
[1742117185288,0.3,84187.0,84186.0,0.26157073]
[1742117185623,0.30736363,84187.0,84186.0,0.26157073]
[1742117186575,0.3,84187.0,84186.0,0.26157073]
[1742117187212,0.011875,84204.0,84199.0,0.237532]
[1742117187365,0.3,84201.0,84200.0,0.237529]
[1742117187591,0.3,84201.0,84199.0,0.237532]
[1742117187795,0.02528422,84203.0,84199.0,0.237532]
[1742117187796,0.02528422,84203.0,84200.0,0.011876]
[1742117188142,0.01787683,84203.0,84202.0,0.2494]
[1742117188313,0.005,84210.0,84208.0,0.237507]
[1742117188511,0.305,84210.0,84208.0,0.237507]
[1742117188776,0.02535308,84209.0,84207.0,0.237507]
[1742117189155,0.02535308,84209.0,84206.0,0.237512]
[1742117189485,0.011876,84203.0,84198.0,0.237535]
[1742117189685,0.011875,84205.0,84200.0,0.237529]
[1742117189927,0.237519,84204.0,84201.0,0.237526]
[1742117190096,0.26285828,84204.0,84201.0,1.737526]
[1742117190302,0.537524,84202.0,84201.0,1.5]
[1742117190506,0.3,84201.0,84199.0,0.004]
[1742117190700,0.3,84202.0,84200.0,0.13188]
[1742117191025,0.011876,84202.0,84200.0,0.13488]
[1742117191238,0.549402,84201.0,84200.0,0.13188]
[1742117191985,0.3,84201.0,84200.0,0.13188]
[1742117193093,0.3,84201.0,84200.0,0.369409]
[1742117193301,0.3074344,84201.0,84200.0,0.369409]
[1742117193502,0.3074344,84201.0,84200.0,0.373409]
[1742117194238,0.3074344,84201.0,84200.0,0.377409]
[1742117195475,0.3074344,84201.0,84200.0,0.245529]
[1742117197043,0.32501505,84201.0,84200.0,0.245529]
[1742117198769,0.32535405,84201.0,84200.0,0.245529]
[1742117198973,0.32535405,84201.0,84200.0,0.257405]
[1742117202329,0.02535405,84201.0,84200.0,0.257405]
[1742117202981,0.01791965,84201.0,84200.0,0.257405]
[1742117203131,0.0077734,84201.0,84200.0,0.257405]
[1742117204279,0.000339,84201.0,84200.0,0.257405]
[1742117204667,0.02535427,84201.0,84200.0,0.257405]
[1742117204870,0.000339,84201.0,84200.0,0.257405]
[1742117205070,0.02535427,84201.0,84200.0,0.257405]
[1742117205266,0.000339,84201.0,84200.0,0.257405]
[1742117205471,0.02535427,84201.0,84200.0,0.257405]
[1742117205689,0.000339,84201.0,84200.0,0.257405]
[1742117205940,0.02535427,84201.0,84200.0,0.257405]
[1742117206148,0.000339,84201.0,84200.0,0.257405]
[1742117206357,0.02535558,84201.0,84200.0,0.257405]
[1742117207194,0.0077734,84201.0,84200.0,0.257405]
[1742117207561,0.000339,84201.0,84200.0,0.257405]
[1742117212345,0.000339,84201.0,84200.0,1.757405]
[1742117212548,0.000339,84201.0,84200.0,0.257405]
[1742117215170,0.000339,84201.0,84200.0,0.37698003]
[1742117215370,0.000339,84201.0,84200.0,0.45478003]
[1742117215863,0.000339,84201.0,84200.0,1.95478003]
[1742117216699,0.000339,84201.0,84200.0,1.757405]
[1742117216901,0.000339,84201.0,84200.0,1.889045]
[1742117217103,0.000339,84201.0,84200.0,0.253405]
[1742117217302,0.000339,84201.0,84200.0,0.389085]
[1742117217707,0.02540213,84201.0,84200.0,0.385085]
[1742117217929,0.000339,84201.0,84200.0,0.385085]
[1742117218088,0.02539819,84201.0,84200.0,0.385085]
[1742117218291,0.000339,84201.0,84200.0,0.381085]
[1742117218473,0.000339,84201.0,84200.0,0.385085]
[1742117219059,0.02538244,84201.0,84200.0,0.385085]
[1742117219266,0.000339,84201.0,84200.0,0.390085]
[1742117219479,0.02538637,84201.0,84200.0,0.390085]
[1742117219669,0.000339,84201.0,84200.0,0.390085]
[1742117220180,0.0253785,84201.0,84200.0,0.390085]
[1742117220519,0.000339,84201.0,84200.0,0.390085]
[1742117220715,0.02537063,84201.0,84200.0,0.390085]
[1742117220879,0.000339,84201.0,84200.0,0.390085]
[1742117221075,0.02537457,84201.0,84200.0,0.390085]
[1742117222860,0.26290057,84201.0,84200.0,0.14068]
[1742117223035,0.02537457,84201.0,84200.0,0.14068]
[1742117223623,0.26290057,84201.0,84200.0,0.14068]
[1742117224026,0.27477657,84201.0,84200.0,0.009]
[1742117224443,0.249405,84200.0,84199.0,0.1316]
[1742117225207,0.237544,84195.0,84193.0,0.237548]
[1742117225410,0.254429,84192.0,84191.0,0.0001695]
[1742117226066,0.27304471,84192.0,84191.0,0.0001695]
[1742117227070,0.29061093,84192.0,84191.0,0.0001695]
[1742117227708,0.29061093,84192.0,84191.0,0.0031695]
[1742117228117,0.59061093,84192.0,84191.0,0.0071695]
[1742117228833,0.57199522,84192.0,84191.0,0.0071695]
[1742117233112,0.59061144,84192.0,84191.0,0.0071695]
[1742117239717,0.57199522,84192.0,84191.0,0.0071695]
[1742117240330,0.57199522,84192.0,84191.0,0.0001695]
[1742117240743,0.57199522,84192.0,84191.0,0.0051695]
[1742117243039,0.59061267,84192.0,84191.0,0.0051695]
[1742117244174,0.57199522,84192.0,84191.0,0.0051695]
[1742117246370,0.57233402,84192.0,84191.0,0.0051695]
[1742117247181,0.71735173,84192.0,84191.0,0.0051695]
[1742117247409,0.70547473,84192.0,84191.0,0.0051695]
[1742117247543,0.71735173,84192.0,84191.0,0.0051695]
[1742117248179,0.69873402,84192.0,84191.0,0.0051695]
[1742117248624,0.72323479,84192.0,84191.0,0.0051695]
[1742117248780,0.69873402,84192.0,84191.0,0.0051695]
[1742117249417,0.69873402,84192.0,84191.0,0.0021695]
[1742117249747,0.69873402,84192.0,84181.0,0.0021696]
[1742117249748,0.443279,84182.0,84181.0,0.0021696]
[1742117249894,0.680859,84182.0,84181.0,0.00221389]
[1742117250112,0.69839527,84182.0,84181.0,0.00221389]
[1742117250311,0.71293612,84182.0,84181.0,0.00221389]
[1742117250541,0.71293612,84182.0,84181.0,8.9e-07]
[1742117250542,1.13083612,84182.0,84181.0,8.9e-07]
[1742117250716,1.13083612,84182.0,84151.0,0.0008]
[1742117250717,0.011882,84160.0,84151.0,0.0008]
[1742117250919,0.68211129,84160.0,84159.0,0.00058419]
[1742117251098,0.69841484,84160.0,84159.0,0.00058419]
[1742117251297,0.44889084,84160.0,84159.0,0.00058419]
[1742117251503,0.44389084,84160.0,84159.0,0.00058419]
[1742117251705,0.40668492,84160.0,84159.0,0.00058419]
[1742117252141,0.41856692,84160.0,84159.0,0.00058419]
[1742117252776,0.43719089,84160.0,84159.0,0.00058419]
[1742117252975,0.45766594,84160.0,84159.0,0.00158419]
[1742117253261,0.44578394,84160.0,84159.0,0.00158419]
[1742117253484,0.43405339,84160.0,84159.0,0.00158419]
[1742117253840,0.42905339,84160.0,84159.0,0.00158419]
[1742117254397,0.43405339,84160.0,84159.0,0.00158419]
[1742117254584,0.44593539,84160.0,84159.0,0.00158419]
[1742117254776,0.41057435,84160.0,84159.0,0.00158419]
[1742117255332,0.49017435,84160.0,84159.0,0.00158419]
[1742117256177,0.45474202,84160.0,84159.0,0.00158419]
[1742117256379,0.45474202,84160.0,84159.0,0.00058419]
[1742117257235,0.50154202,84160.0,84159.0,0.00058419]
[1742117258118,0.48291805,84160.0,84159.0,0.00058419]
[1742117259325,0.48491805,84160.0,84159.0,0.00058419]
[1742117260512,0.48691805,84160.0,84159.0,0.00058419]
[1742117262168,0.46477284,84160.0,84159.0,0.00058419]
[1742117262748,0.48339801,84160.0,84159.0,0.00058419]
[1742117262977,0.90129801,84160.0,84159.0,0.00058419]
[1742117266675,0.90471704,84160.0,84159.0,0.00058419]
[1742117268931,0.91925789,84160.0,84159.0,1.9e-07]
[1742117269557,0.91925789,84160.0,84159.0,0.00016959]
[1742117269813,0.91925789,84160.0,84159.0,5.9e-07]
[1742117271289,0.93788607,84160.0,84159.0,5.9e-07]
[1742117271618,1.17552807,84160.0,84159.0,5.9e-07]
[1742117276670,1.15689989,84160.0,84159.0,5.9e-07]
[1742117278796,1.14235904,84160.0,84159.0,5.9e-07]
[1742117280028,1.17552769,84160.0,84159.0,5.9e-07]
[1742117281821,1.16098684,84160.0,84159.0,5.9e-07]
[1742117284695,1.15898684,84160.0,84159.0,5.9e-07]
[1742117284834,1.16828549,84160.0,84159.0,5.9e-07]
[1742117285234,1.17228549,84160.0,84159.0,5.9e-07]
[1742117286516,1.15365769,84160.0,84159.0,5.9e-07]
[1742117288270,1.15365769,84160.0,84151.0,0.0008]
[1742117288271,0.637448,84152.0,84151.0,5.9e-07]
[1742117288475,0.637448,84152.0,84151.0,8.375e-05]
[1742117288673,0.66359194,84152.0,84151.0,8.375e-05]
[1742117289671,0.67359194,84152.0,84151.0,8.375e-05]
[1742117290140,0.69222163,84152.0,84151.0,8.375e-05]
[1742117290987,0.69563614,84152.0,84151.0,8.375e-05]
[1742117292350,1.11353614,84152.0,84151.0,8.375e-05]
[1742117292771,1.02563614,84152.0,84151.0,8.375e-05]
[1742117292976,1.02063614,84152.0,84151.0,8.375e-05]
[1742117293129,1.02563614,84152.0,84151.0,8.375e-05]
[1742117293328,1.03063614,84152.0,84151.0,8.375e-05]
[1742117293731,1.03063614,84152.0,84151.0,0.00025325]
[1742117294033,1.02563614,84152.0,84151.0,0.00025325]
[1742117294280,1.00359194,84152.0,84151.0,0.00025325]
[1742117294714,0.99859194,84152.0,84151.0,0.00025325]
[1742117295115,1.00359194,84152.0,84151.0,0.00025325]
[1742117295319,1.02722005,84152.0,84151.0,0.00025325]
[1742117298192,1.00859194,84152.0,84151.0,0.00025325]
[1742117299629,0.75904394,84152.0,84151.0,0.00025325]
[1742117300043,0.04114394,84152.0,84151.0,0.24980425]
[1742117300370,0.015,84152.0,84151.0,0.24980425]
[1742117300575,0.03672709,84152.0,84151.0,0.24980425]
[1742117300799,0.01,84152.0,84151.0,0.24980425]
[1742117301262,0.01,84152.0,84151.0,0.32930425]
[1742117301668,0.005,84152.0,84151.0,0.32930425]
[1742117302072,0.008,84152.0,84151.0,0.32930425]
[1742117302444,0.000339,84160.0,84159.0,0.329027]
[1742117302661,0.000339,84160.0,84159.0,0.326027]
[1742117302812,0.000339,84160.0,84159.0,0.373927]
[1742117303993,0.0003388,84175.0,84174.0,0.249483]
[1742117304224,0.0003388,84175.0,84174.0,1.295723]
[1742117304608,0.0003388,84175.0,84174.0,1.247823]
[1742117304828,0.0003388,84175.0,84174.0,1.156443]
[1742117305051,0.0003388,84175.0,84174.0,0.91884]
[1742117305215,0.0003388,84175.0,84174.0,1.156443]
[1742117305783,0.237587,84180.0,84176.0,0.237597]
[1742117305922,0.00118729,84179.0,84177.0,0.237593]
[1742117306257,0.00118729,84180.0,84178.0,0.237591]
[1742117306637,0.00118729,84180.0,84177.0,0.237593]
[1742117306885,0.01306629,84180.0,84174.0,1.159443]
[1742117307122,0.237589,84179.0,84176.0,0.237597]
[1742117307351,0.00118729,84178.0,84176.0,0.237597]
[1742117307559,0.00118729,84178.0,84177.0,0.001]
[1742117307759,0.30118729,84179.0,84177.0,0.238594]
[1742117307881,0.3,84179.0,84177.0,0.238594]
[1742117308083,0.3,84179.0,84178.0,0.237591]
[1742117308329,0.3,84179.0,84177.0,0.238594]
[1742117308733,0.00118729,84178.0,84177.0,0.238594]
[1742117309290,0.3,84179.0,84177.0,0.237594]
[1742117309505,0.00041403,84180.0,84178.0,0.237591]
[1742117309729,0.00160132,84180.0,84179.0,0.237588]
[1742117309950,0.00041403,84180.0,84178.0,0.237591]
[1742117310153,0.00160132,84180.0,84178.0,0.237591]
[1742117310351,0.00041403,84180.0,84179.0,0.237588]
[1742117310561,0.00041403,84180.0,84179.0,0.249467]
[1742117311378,0.00041403,84180.0,84179.0,0.237588]
[1742117311787,0.02736485,84180.0,84179.0,0.237588]
[1742117313152,0.02736485,84180.0,84179.0,0.238588]
[1742117313297,0.02736485,84180.0,84179.0,0.250467]
[1742117313705,0.00041403,84180.0,84179.0,0.250467]
[1742117313908,0.30041403,84180.0,84179.0,0.001]
[1742117314117,0.30041403,84180.0,84179.0,0.238588]
[1742117314322,0.32737327,84180.0,84179.0,0.001]
[1742117314525,0.32737327,84180.0,84179.0,0.238588]
[1742117314720,0.32737327,84180.0,84179.0,0.001]
[1742117314988,0.32737327,84180.0,84179.0,0.238588]
[1742117315177,0.32737327,84180.0,84179.0,0.001]
[1742117315543,0.32737327,84180.0,84179.0,0.238588]
[1742117315743,0.32737327,84180.0,84179.0,0.001]
[1742117316576,0.32737327,84180.0,84179.0,0.250467]
[1742117317593,0.30041403,84180.0,84179.0,0.250467]
[1742117318008,0.30075283,84180.0,84179.0,0.250467]
[1742117318173,0.32771757,84180.0,84179.0,0.250467]
[1742117318693,0.30075283,84180.0,84179.0,0.250467]
[1742117318903,0.30075283,84180.0,84179.0,0.330667]
[1742117324020,0.30075283,84180.0,84179.0,0.491107]
[1742117328670,0.30075283,84180.0,84179.0,0.410907]
[1742117343082,0.00075283,84180.0,84179.0,0.4070764]
[1742117343511,0.23833883,84180.0,84179.0,0.0011694]
[1742117343733,0.00075283,84180.0,84179.0,0.0011694]
[1742117343943,0.02771835,84180.0,84179.0,0.0011694]
[1742117344349,0.02890564,84180.0,84179.0,0.0011694]
[1742117344506,0.26649164,84180.0,84179.0,0.0011694]
[1742117344705,0.26530435,84180.0,84179.0,0.0011694]
[1742117346583,0.27718335,84180.0,84179.0,0.0011694]
[1742117346975,0.02771835,84180.0,84179.0,0.0011694]
[1742117347200,0.02890564,84180.0,84179.0,0.2387574]
[1742117347337,0.02890564,84180.0,84179.0,0.0011694]
[1742117347861,0.02890564,84180.0,84179.0,0.2387574]
[1742117348050,0.02771835,84180.0,84179.0,0.2387574]
[1742117348252,0.02771835,84180.0,84179.0,0.2506364]
[1742117352433,0.00075283,84180.0,84179.0,0.2506364]
[1742117352924,0.00075283,84180.0,84179.0,0.4049964]
[1742117353855,0.00075283,84180.0,84179.0,1.1593164]
[1742117357742,0.00075283,84180.0,84179.0,1.1583164]
[1742117357944,0.00075283,84180.0,84179.0,1.1603164]
[1742117358280,0.00075283,84180.0,84179.0,1.1613164]
[1742117362569,0.02771195,84180.0,84179.0,1.1613164]
[1742117362798,0.00075283,84180.0,84179.0,1.1613164]
[1742117363000,0.02771195,84180.0,84179.0,1.1613164]
[1742117363333,0.00075283,84180.0,84179.0,0.4069964]
[1742117363949,0.0277159,84180.0,84179.0,0.4069964]
[1742117364152,0.00075283,84180.0,84179.0,0.4069964]
[1742117364356,0.0277159,84180.0,84179.0,0.4069964]
[1742117364519,0.00075283,84180.0,84179.0,0.4069964]
[1742117365864,0.02771587,84180.0,84179.0,0.4069964]
[1742117366049,0.00075283,84180.0,84179.0,0.4069964]
[1742117366253,0.02771587,84180.0,84179.0,0.4069964]